fUST/lending_fUST_20250920
["ID","MTS","AMOUNT","RATE_DAILY","PERIOD"]
[386537680,1758366768029,-480.0,0.00020788,2]
[386537681,1758366768058,-163.69014638,0.00020788,2]
[386537682,1758366768205,-316.30985362,0.00020788,2]
[386537683,1758366770528,214.061514,0.0002003,2]
[386537684,1758366777797,-168.0,0.0002071,2]
[386537685,1758366777827,-480.0,0.00020787,2]
[386537686,1758366777855,-488.50494332,0.00020788,2]
[386537687,1758366777981,-480.0,0.00020788,2]
[386537688,1758366778009,-480.0,0.00020788,2]
[386537689,1758366778036,-411.31788032,0.00020788,2]
[386537690,1758366778065,-480.0,0.00020788,2]
[386537691,1758366778093,-480.0,0.00020788,2]
[386537692,1758366778121,-480.0,0.00020788,2]
[386537693,1758366778149,-514.2044781,0.00020788,2]
[386537694,1758366778178,-201.0,0.00020858,2]
[386537695,1758366778206,-318.02781443,0.0002099,2]
[386537696,1758366778374,-37.89976766,0.0002099,2]
[386537698,1758366787881,-480.0,0.00020788,2]
[386537699,1758366787911,-480.0,0.00020788,2]
[386537700,1758366787940,-480.0,0.00020788,2]
[386537701,1758366787968,-480.0,0.00020788,2]
[386537702,1758366787998,-1593.98,0.00020885,2]
[386537703,1758366788161,-2972.05,0.00020885,2]
[386537704,1758366802729,717.4726008,0.00020181,2]
[386537705,1758366807888,-181.28382691,0.00020787,2]
[386537706,1758366807917,-480.0,0.00020788,2]
[386537707,1758366807945,-931.52,0.00020788,2]
[386537708,1758366807973,-480.0,0.00020788,2]
[386537709,1758366808001,-480.0,0.00020884,2]
[386537710,1758366808029,-480.0,0.00020885,2]
[386537711,1758366808058,-480.0,0.00020885,2]
[386537712,1758366808086,-507.0,0.00020885,2]
[386537713,1758366808114,-480.0,0.00020885,2]
[386537714,1758366808143,-168.0,0.00020907,2]
[386537715,1758366812120,487.92,0.00019332,2]
[386537716,1758366812478,975.83,0.00020252,2]
[386537717,1758366822437,168.12230988,0.00019973,2]
[386537718,1758366824585,671.81675029,0.00019973,2]
[386537719,1758366839990,-812.14104385,0.00020745,2]
[386537720,1758366840018,-480.0,0.00020787,2]
[386537721,1758366840047,-484.75505258,0.00020787,2]
[386537722,1758366840079,-2004.3,0.00020787,2]
[386537723,1758366840108,-480.0,0.00020787,2]
[386537724,1758366840139,-485.97,0.00020787,2]
[386537725,1758366840168,-21.64545294,0.00020788,2]
[386537726,1758366847946,-300.0,0.00020786,2]
[386537727,1758366847976,-462.38690126,0.00020788,2]
[386537728,1758366848007,-2215.61,0.00020788,2]
[386537729,1758366848035,-488.02973366,0.00020788,2]
[386537730,1758366848063,-480.0,0.00020788,2]
[386537731,1758366848091,-480.0,0.00020788,2]
[386537732,1758366848119,-480.0,0.00020788,2]
[386537733,1758366857935,-480.0,0.00020787,2]
[386537734,1758366857967,-326.95,0.00020787,2]
[386537735,1758366858000,-1174.57,0.00020788,2]
[386537736,1758366858028,-480.0,0.00020788,2]
[386537737,1758366858058,-483.45214899,0.00020788,2]
[386537738,1758366858086,-480.0,0.00020788,2]
[386537739,1758366858113,-480.0,0.00020788,2]
[386537740,1758366858141,-480.0,0.00020788,2]
[386537741,1758366858167,-480.0,0.00020788,2]
[386537742,1758366858334,-55.19803497,0.00020788,2]
[386537743,1758366867964,-424.80196503,0.00020788,2]
[386537744,1758366867992,-492.65874402,0.00020788,2]
[386537745,1758366868020,-480.0,0.00020788,2]
[386537746,1758366868048,-492.26195771,0.00020788,2]
[386537747,1758366868076,-500.0,0.00020873,2]
[386537748,1758366868103,-502.26028612,0.00020873,2]
[386537749,1758366868130,-500.0,0.00020873,2]
[386537750,1758366868158,-825.07,0.00020885,2]
[386537751,1758366868186,-481.15291093,0.00020885,2]
[386537752,1758366868214,-123.59827238,0.00020885,2]
[386537753,1758366868353,-356.40172762,0.00020885,2]
[386537754,1758366888362,1003.52786,0.000199,2]
[386537755,1758366893957,469.29,0.00019335,2]
[386537756,1758366894419,938.58,0.00020256,2]
[386537757,1758366950119,-1200.0,0.00020786,2]
[386537758,1758366950147,-480.0,0.00020787,2]
[386537759,1758366950175,-480.0,0.00020787,2]
[386537760,1758366950202,-300.0,0.00020787,2]
[386537761,1758366950230,-300.0,0.00020787,2]
[386537762,1758366950261,-300.0,0.00020787,2]
[386537763,1758366950290,-480.0,0.00020787,2]
[386537764,1758366950323,-498.92,0.00020787,2]
[386537765,1758366950351,-300.0,0.00020787,2]
[386537766,1758366950379,-300.0,0.00020787,2]
[386537767,1758366958107,-742.22,0.00020787,2]
[386537768,1758366958136,-480.0,0.00020787,2]
[386537769,1758366958167,-880.74,0.00020787,2]
[386537770,1758366958194,-480.0,0.00020788,2]
[386537771,1758366958222,-480.0,0.00020788,2]
[386537772,1758366958251,-786.88,0.00020788,2]
[386537773,1758366958278,-480.0,0.00020788,2]
[386537774,1758366958305,-480.0,0.00020788,2]
[386537775,1758366968087,-300.0,0.00020787,2]
[386537776,1758366968116,-480.0,0.00020787,2]
[386537777,1758366968146,-480.0,0.00020787,2]
[386537778,1758366968176,-1314.29,0.00020788,2]
[386537779,1758366968205,-480.0,0.00020788,2]
[386537780,1758366968342,-491.67073469,0.00020788,2]
[386537781,1758366968375,-480.0,0.00020788,2]
[386537782,1758366968403,-480.0,0.00020788,2]
[386537783,1758366968431,-480.0,0.00020788,2]
[386537784,1758366977182,451.37,0.00019334,2]
[386537785,1758366977684,902.74,0.00020255,2]
[386537786,1758366979431,666.0,0.00019875,2]
[386537787,1758366984481,796.0,0.00020519,2]
[386537788,1758367010239,-912.76,0.00020787,2]
[386537789,1758367010269,-480.0,0.00020787,2]
[386537790,1758367010298,-480.0,0.00020788,2]
[386537791,1758367010326,-486.06319791,0.00020788,2]
[386537792,1758367010354,-480.0,0.00020788,2]
[386537793,1758367010381,-480.0,0.00020788,2]
[386537794,1758367010409,-483.85,0.00020788,2]
[386537795,1758367010436,-480.0,0.00020788,2]
[386537796,1758367010463,-480.0,0.00020788,2]
[386537797,1758367018217,-480.0,0.00020788,2]
[386537798,1758367018246,-480.0,0.00020788,2]
[386537799,1758367018274,-480.0,0.00020788,2]
[386537800,1758367018304,-991.23,0.00020788,2]
[386537801,1758367018332,-366.10514605,0.00020788,2]
[386537802,1758367018359,-480.0,0.00020788,2]
[386537803,1758367018386,-480.0,0.00020788,2]
[386537804,1758367018413,-480.0,0.00020788,2]
[386537805,1758367018442,-480.0,0.00020788,2]
[386537806,1758367020529,542.707786,0.00019868,2]
[386537808,1758367028224,-480.0,0.00020787,2]
[386537809,1758367028254,-300.0,0.00020787,2]
[386537810,1758367028286,-1129.94,0.00020788,2]
[386537811,1758367028317,-480.0,0.00020788,2]
[386537812,1758367028346,-480.0,0.00020788,2]
[386537813,1758367028377,-2063.87,0.00020788,2]
[386537814,1758367038258,-1200.0,0.00020787,2]
[386537815,1758367038288,-480.0,0.00020788,2]
[386537816,1758367038318,-480.0,0.00020788,2]
[386537817,1758367038350,-480.0,0.00020788,2]
[386537818,1758367038380,-480.0,0.00020788,2]
[386537819,1758367038410,-480.0,0.00020788,2]
[386537820,1758367038440,-480.0,0.00020788,2]
[386537821,1758367038470,-487.99867658,0.00020788,2]
[386537822,1758367038614,-384.01264684,0.00020788,2]
[386537823,1758367060342,434.14,0.00019336,2]
[386537824,1758367060792,868.27,0.00020257,2]
[386537825,1758367072974,970.07693114,0.000199,2]
[386537826,1758367078308,-2180.8,0.00020787,2]
[386537827,1758367078341,-480.0,0.00020787,2]
[386537828,1758367078373,-1157.32,0.00020787,2]
[386537829,1758367078405,-95.98735316,0.00020788,2]
[386537830,1758367078434,-490.31790458,0.00020788,2]
[386537831,1758367078465,-480.0,0.00020788,2]
[386537832,1758367088319,-300.0,0.00020787,2]
[386537833,1758367088351,-160.0,0.00020788,2]
[386537834,1758367088383,-491.3931156,0.00020788,2]
[386537835,1758367088414,-480.0,0.00020788,2]
[386537836,1758367088444,-480.0,0.00020788,2]
[386537837,1758367088474,-2665.93,0.00020788,2]
[386537838,1758367088612,-879.78,0.00020788,2]
[386537839,1758367088659,-480.0,0.00020788,2]
[386537840,1758367088690,-173.57874215,0.00020788,2]
[386537841,1758367088721,-481.29508615,0.00020788,2]
[386537842,1758367088753,-480.0,0.00020788,2]
[386537843,1758367088784,-480.0,0.00020788,2]
[386537844,1758367088815,-480.0,0.00020788,2]
[386537845,1758367088846,-480.0,0.00020788,2]
[386537846,1758367088877,-493.31123027,0.00020788,2]
[386537847,1758367088908,-480.0,0.00020788,2]
[386537848,1758367089068,-488.01785335,0.00020788,2]
[386537849,1758367089100,-490.10439157,0.00020788,2]
[386537850,1758367089131,-482.18892815,0.00020788,2]
[386537851,1758367089162,-487.30719124,0.00020788,2]
[386537852,1758367089192,-487.94716902,0.00020788,2]
[386537853,1758367089223,-480.0,0.00020788,2]
[386537854,1758367089252,-480.0,0.00020788,2]
[386537855,1758367089282,-480.0,0.00020788,2]
[386537856,1758367089311,-480.0,0.00020788,2]
[386537857,1758367089341,-480.0,0.00020788,2]
[386537858,1758367098337,-480.0,0.00020788,2]
[386537859,1758367098366,-480.0,0.00020788,2]
[386537860,1758367098396,-489.42673589,0.00020788,2]
[386537861,1758367098427,-480.0,0.00020788,2]
[386537862,1758367098458,-480.0,0.00020788,2]
[386537863,1758367098489,-480.0,0.00020788,2]
[386537864,1758367098518,-480.0,0.00020788,2]
[386537865,1758367098548,-419.34308129,0.00020788,2]
[386537866,1758367098578,-480.0,0.00020788,2]
[386537867,1758367098609,-487.20405242,0.00020788,2]
[386537868,1758367098640,-8.0622608,0.00020788,2]
[386537869,1758367098774,-471.9377392,0.00020788,2]
[386537870,1758367098804,-480.0,0.00020788,2]
[386537871,1758367098836,-458.14592368,0.00020788,2]
[386537872,1758367098869,-480.0,0.00020788,2]
[386537873,1758367098901,-577.35156978,0.00020788,2]
[386537874,1758367098932,-480.0,0.00020788,2]
[386537875,1758367098968,-480.0,0.00020788,2]
[386537876,1758367099002,-1169.45953468,0.00020788,2]
[386537877,1758367099127,-806.22046532,0.00020788,2]
[386537878,1758367099158,-480.0,0.00020788,2]
[386537879,1758367099189,-480.0,0.00020788,2]
[386537880,1758367099221,-480.0,0.00020788,2]
[386537881,1758367099252,-480.0,0.00020788,2]
[386537882,1758367099283,-480.0,0.00020788,2]
[386537883,1758367099314,-481.26529006,0.00020788,2]
[386537884,1758367099344,-480.0,0.00020788,2]
[386537885,1758367099375,-480.0,0.00020788,2]
[386537886,1758367099405,-225.03848924,0.00020788,2]
[386537887,1758367099468,-254.96151076,0.00020788,2]
[386537888,1758367099498,-480.0,0.00020788,2]
[386537889,1758367099528,-480.0,0.00020788,2]
[386537890,1758367099558,-183.6188774,0.00020798,2]
[386537891,1758367099589,-228.76339816,0.00020798,2]
[386537892,1758367099622,-500.0,0.00020798,2]
[386537893,1758367099655,-500.0,0.00020798,2]
[386537894,1758367099685,-368.86501293,0.00020798,2]
[386537895,1758367099717,-500.0,0.00020798,2]
[386537896,1758367099750,-500.0,0.00020798,2]
[386537897,1758367099784,-500.0,0.00020798,2]
[386537898,1758367099818,-500.0,0.00020798,2]
[386537899,1758367100608,-155.6540477,0.00020798,2]
[386537900,1758367100631,-7.5924015,0.00020798,2]
[386537901,1758367108382,-480.0,0.00020788,2]
[386537902,1758367108412,-485.72,0.00020788,2]
[386537903,1758367108452,-336.7535508,0.00020798,2]
[386537904,1758367108488,-500.0,0.00020798,2]
[386537905,1758367108522,-500.0,0.00020798,2]
[386537906,1758367108554,-500.0,0.00020798,2]
[386537907,1758367108586,-500.0,0.00020798,2]
[386537908,1758367108619,-166.7587738,0.00020798,2]
[386537909,1758367108653,-500.0,0.00020798,2]
[386537910,1758367108685,-500.0,0.00020798,2]
[386537911,1758367108717,-500.0,0.00020798,2]
[386537912,1758367108832,-500.0,0.00020798,2]
[386537913,1758367108867,-500.0,0.00020798,2]
[386537914,1758367108901,-500.0,0.00020798,2]
[386537915,1758367108935,-500.0,0.00020798,2]
[386537916,1758367108972,-500.0,0.00020798,2]
[386537917,1758367109005,-500.0,0.00020798,2]
[386537918,1758367109039,-500.0,0.00020798,2]
[386537919,1758367109072,-500.0,0.00020798,2]
[386537920,1758367109106,-500.0,0.00020798,2]
[386537921,1758367109139,-500.0,0.00020798,2]
[386537922,1758367109293,-500.0,0.00020798,2]
[386537923,1758367109459,-161.09379145,0.00020798,2]
[386537924,1758367109491,-500.0,0.00020798,2]
[386537925,1758367109522,-2952.2436568,0.00020799,2]
[386537926,1758367109552,-481.57317807,0.00020812,2]
[386537927,1758367109924,-61.5553508,0.00020813,2]
[386537928,1758367109939,-810.18874736,0.00020813,2]
[386537930,1758367118409,-162.32684788,0.00020788,2]
[386537931,1758367118442,-480.0,0.00020788,2]
[386537932,1758367118473,-2660.3562792,0.00020813,2]
[386537933,1758367118525,-3394.64374584,0.00020813,2]
[386537934,1758367143043,499.58,0.00019436,2]
[386537935,1758367143528,999.15,0.00020361,2]
[386537936,1758367222970,172.80948068,0.00020686,2]
[386537937,1758367226026,497.11,0.00019526,2]
[386537938,1758367226529,994.22,0.00020456,2]
[386537939,1758367249705,1000.0,0.00019864,2]
[386537940,1758367260706,1089.18658506,0.000199,2]
[386537944,1758367308074,505.78,0.00019332,2]
[386537945,1758367308526,1011.56,0.00020253,2]
[386537946,1758367389708,486.47,0.0001935,2]
[386537947,1758367390126,972.94,0.00020271,2]
[386537948,1758367408472,262.0,0.00020587,2]
[386537949,1758367414097,262.0,0.00020643,2]
[386537950,1758367441838,1052.8803655,0.000199,2]
[386537951,1758367472758,467.89,0.0001935,2]
[386537952,1758367473215,935.79,0.00020271,2]
[386537953,1758367491358,10000.0,0.00019793,2]
[386538035,1758367556231,1140.63086333,0.00020688,2]
[386538036,1758367556326,450.03,0.00019408,2]
[386538037,1758367556814,900.06,0.00020332,2]
[386538042,1758367619292,-262.0,0.00020754,2]
[386538043,1758367619321,-1200.0,0.00020784,2]
[386538044,1758367619350,-300.0,0.00020784,2]
[386538045,1758367619378,-1200.0,0.00020785,2]
[386538046,1758367619406,-300.0,0.00020785,2]
[386538047,1758367619435,-300.0,0.00020785,2]
[386538048,1758367619462,-300.0,0.00020785,2]
[386538049,1758367619490,-300.0,0.00020785,2]
[386538050,1758367619520,-240.75097487,0.00020787,2]
[386538051,1758367619551,-500.0,0.00020787,2]
[386538052,1758367619643,-500.0,0.00020787,2]
[386538053,1758367619675,-184.56597683,0.00020787,2]
[386538054,1758367619821,-480.0,0.00020787,2]
[386538055,1758367619852,-480.0,0.00020787,2]
[386538056,1758367619882,-480.0,0.00020787,2]
[386538057,1758367619912,-892.7,0.00020787,2]
[386538058,1758367619939,-466.62715453,0.00020787,2]
[386538059,1758367619969,-1259.53,0.00020787,2]
[386538060,1758367619999,-33.16373728,0.00020788,2]
[386538061,1758367629275,-300.0,0.00020784,2]
[386538062,1758367629304,-446.83626272,0.00020788,2]
[386538063,1758367629332,-480.0,0.00020788,2]
[386538064,1758367629359,-480.0,0.00020788,2]
[386538065,1758367629386,-480.0,0.00020788,2]
[386538066,1758367629414,-480.0,0.00020788,2]
[386538067,1758367629444,-480.0,0.00020788,2]
[386538068,1758367629472,-480.0,0.00020788,2]
[386538069,1758367629501,-480.0,0.00020788,2]
[386538070,1758367629532,-480.0,0.00020788,2]
[386538071,1758367629563,-346.33747456,0.00020788,2]
[386538072,1758367629787,-133.66252544,0.00020788,2]
[386538073,1758367629817,-319.20721234,0.00020788,2]
[386538074,1758367629848,-481.92061712,0.00020788,2]
[386538075,1758367629878,-480.0,0.00020788,2]
[386538076,1758367629908,-480.0,0.00020788,2]
[386538077,1758367629939,-480.0,0.00020788,2]
[386538078,1758367629966,-485.03277472,0.00020788,2]
[386538079,1758367630104,-480.0,0.00020788,2]
[386538080,1758367630278,-255.2389799,0.00020788,2]
[386538081,1758367630309,-480.0,0.00020788,2]
[386538082,1758367630338,-480.0,0.00020788,2]
[386538083,1758367630367,-409.88578096,0.00020788,2]
[386538084,1758367630538,-70.11421904,0.00020788,2]
[386538085,1758367630567,-487.89819112,0.00020788,2]
[386538086,1758367630597,-480.0,0.00020788,2]
[386538087,1758367630627,-480.0,0.00020788,2]
[386538088,1758367630656,-480.0,0.00020788,2]
[386538089,1758367630685,-480.0,0.00020788,2]
[386538090,1758367630714,-480.0,0.00020788,2]
[386538091,1758367630744,-480.0,0.00020788,2]
[386538092,1758367630775,-480.0,0.00020788,2]
[386538093,1758367630805,-442.86193194,0.00020788,2]
[386538094,1758367630833,-480.0,0.00020788,2]
[386538095,1758367630920,-340.58124665,0.00020788,2]
[386538096,1758367630949,-480.0,0.00020788,2]
[386538097,1758367630980,-480.0,0.00020788,2]
[386538098,1758367631011,-480.0,0.00020788,2]
[386538099,1758367631042,-2028.83,0.00020788,2]
[386538100,1758367631071,-480.0,0.00020788,2]
[386538101,1758367631133,-1478.7,0.00020788,2]
[386538102,1758367631167,-480.0,0.00020788,2]
[386538103,1758367631196,-480.0,0.00020788,2]
[386538104,1758367631227,-843.12,0.00020788,2]
[386538105,1758367631255,-487.03564083,0.00020788,2]
[386538106,1758367631284,-480.0,0.00020788,2]
[386538107,1758367631316,-480.0,0.00020788,2]
[386538108,1758367631346,-62.29871834,0.00020788,2]
[386538109,1758367631600,-417.70128166,0.00020788,2]
[386538110,1758367631629,-480.0,0.00020788,2]
[386538111,1758367631658,-480.0,0.00020788,2]
[386538112,1758367631686,-480.0,0.00020788,2]
[386538113,1758367631716,-778.01,0.00020788,2]
[386538114,1758367631745,-489.33481856,0.00020788,2]
[386538115,1758367631774,-481.5012403,0.00020788,2]
[386538116,1758367631802,-486.15753045,0.00020788,2]
[386538117,1758367631831,-489.32028551,0.00020788,2]
[386538118,1758367631859,-355.95968704,0.00020788,2]
[386538119,1758367633061,-59.19923744,0.00020788,2]
[386538120,1758367634775,1017.78435322,0.000199,2]
[386538121,1758367639346,-1181.0,0.00020787,2]
[386538122,1758367639378,-64.84107552,0.00020788,2]
[386538123,1758367639407,-481.19761199,0.00020788,2]
[386538124,1758367639439,-480.0,0.00020788,2]
[386538125,1758367639469,-486.08556403,0.00020788,2]
[386538126,1758367639503,-237.98149692,0.00020788,2]
[386538127,1758367639616,-4137.79850308,0.00020788,2]
[386538128,1758367639645,-491.6859979,0.00020788,2]
[386538129,1758367639675,-261.04099804,0.00020788,2]
[386538130,1758367639834,-218.95900196,0.00020788,2]
[386538131,1758367639863,-480.0,0.00020788,2]
[386538132,1758367639891,-486.57081854,0.00020788,2]
[386538133,1758367639920,-524.98389916,0.00020788,2]
[386538134,1758367639948,-482.63768107,0.00020788,2]
[386538135,1758367639978,-483.8802383,0.00020788,2]
[386538136,1758367640006,-480.0,0.00020788,2]
[386538137,1758367640036,-480.0,0.00020788,2]
[386538138,1758367640064,-480.0,0.00020788,2]
[386538139,1758367640094,-790.7,0.00020788,2]
[386538140,1758367640282,-482.12603921,0.00020788,2]
[386538141,1758367640417,-481.42671014,0.00020788,2]
[386538142,1758367640448,-480.0,0.00020788,2]
[386538143,1758367640477,-480.1,0.00020788,2]
[386538144,1758367640506,-480.0,0.00020788,2]
[386538145,1758367640535,-86.20524124,0.00020794,2]
[386538146,1758367640600,433.31,0.00019392,2]
[386538147,1758367640726,-4979.71598118,0.00020794,2]
[386538148,1758367641039,-40.57803764,0.00020794,2]
[386538149,1758367641049,-158.51967547,0.00020794,2]
[386538150,1758367641059,-307.05046586,0.00020796,2]
[386538151,1758367641068,-275.86987741,0.00020796,2]
[386538152,1758367641078,-480.0,0.00020797,2]
[386538153,1758367641088,-480.0,0.00020797,2]
[386538154,1758367641098,-480.0,0.00020797,2]
[386538155,1758367641108,-480.0,0.00020797,2]
[386538156,1758367641118,-949.93,0.00020797,2]
[386538157,1758367641128,-932.06024745,0.00020797,2]
[386538158,1758367641159,866.63,0.00020316,2]
[386538159,1758367641182,-150.79975255,0.00020797,2]
[386538160,1758367641191,-480.0,0.00020797,2]
[386538161,1758367641201,-480.0,0.00020797,2]
[386538162,1758367641210,-480.0,0.00020797,2]
[386538163,1758367641220,-2556.92,0.00020797,2]
[386538164,1758367641230,-480.0,0.00020797,2]
[386538165,1758367641239,-392.57426627,0.00020797,2]
[386538166,1758367649376,-910.35,0.00020787,2]
[386538167,1758367649405,-480.0,0.00020788,2]
[386538168,1758367649435,-87.42573373,0.00020797,2]
[386538169,1758367649463,-480.0,0.00020797,2]
[386538170,1758367649492,-480.0,0.00020797,2]
[386538171,1758367649521,-480.0,0.00020797,2]
[386538172,1758367649549,-182.49121975,0.00020797,2]
[386538173,1758367649581,-1893.36,0.00020797,2]
[386538174,1758367649710,-480.0,0.00020797,2]
[386538175,1758367649739,-480.0,0.00020797,2]
[386538176,1758367649768,-485.33090134,0.00020797,2]
[386538177,1758367649797,-480.0,0.00020797,2]
[386538178,1758367649826,-480.0,0.00020797,2]
[386538179,1758367649856,-480.0,0.00020797,2]
[386538180,1758367649888,-480.0,0.00020797,2]
[386538181,1758367649917,-480.0,0.00020797,2]
[386538182,1758367649950,-480.0,0.00020797,2]
[386538183,1758367650081,-495.66907172,0.00020797,2]
[386538184,1758367650270,-480.0,0.00020797,2]
[386538185,1758367650298,-480.0,0.00020797,2]
[386538186,1758367650326,-480.0,0.00020797,2]
[386538187,1758367650354,-480.0,0.00020797,2]
[386538188,1758367650383,-254.19568196,0.000208,2]
[386538189,1758367650410,-1009.75995651,0.00020816,2]
[386538190,1758367650439,-262.0,0.00020823,2]
[386538191,1758367650466,-500.0,0.00020873,2]
[386538192,1758367650494,-761.07872306,0.00020879,3]
[386538193,1758367650911,-585.94127694,0.00020879,3]
[386538194,1758367650921,-391.76611998,0.00020879,3]
[386538204,1758367671282,24337.5739848,0.00018,2]
[386538205,1758367700613,206.938755,0.00019866,2]
[386538208,1758367724704,416.77,0.00019395,2]
[386538209,1758367725173,833.54,0.00020319,2]
[386538210,1758367729431,-1037.74,0.00020787,2]
[386538211,1758367729462,-480.0,0.00020787,2]
[386538212,1758367729492,-300.0,0.00020787,2]
[386538213,1758367729523,-480.0,0.00020787,2]
[386538214,1758367729553,-480.0,0.00020787,2]
[386538215,1758367729582,-1994.14,0.00020787,2]
[386538216,1758367729676,-456.25,0.00020787,2]
[386538217,1758367729708,-480.0,0.00020787,2]
[386538218,1758367729737,-480.0,0.00020788,2]
[386538219,1758367729766,-480.0,0.00020788,2]
[386538220,1758367729795,-480.0,0.00020788,2]
[386538221,1758367729824,-482.58581578,0.00020788,2]
[386538222,1758367729853,-480.0,0.00020788,2]
[386538223,1758367729882,-482.23889855,0.00020788,2]
[386538224,1758367729910,-480.0,0.00020788,2]
[386538225,1758367729939,-480.0,0.00020788,2]
[386538226,1758367730240,-2.58581578,0.00020797,2]
[386538227,1758367730254,-477.41418422,0.00020797,2]
[386538228,1758367730263,-2.58581578,0.00020797,2]
[386538229,1758367730277,-437.86057134,0.00020797,2]
[386538230,1758367739482,-39.55361288,0.00020797,2]
[386538231,1758367739510,-480.0,0.00020797,2]
[386538232,1758367739540,-871.13,0.00020797,2]
[386538233,1758367739568,-498.13,0.00020797,2]
[386538234,1758367739597,-417.15472785,0.00020797,2]
[386538235,1758367739627,-731.3,0.00020797,2]
[386538236,1758367739656,-172.52,0.00020797,2]
[386538237,1758367739685,-480.0,0.00020797,2]
[386538238,1758367739715,-480.0,0.00020797,2]
[386538239,1758367739744,-480.0,0.00020797,2]
[386538240,1758367739775,-220.43331854,0.00020797,2]
[386538241,1758367739950,-259.56668146,0.00020797,2]
[386538242,1758367739980,-480.0,0.00020797,2]
[386538243,1758367740011,-480.0,0.00020797,2]
[386538244,1758367740046,-673.17330434,0.00020816,2]
[386538245,1758367740080,-281.74388002,0.00020879,3]
[386538246,1758367740111,-336.76,0.00020879,3]
[386538247,1758367740140,-168.38,0.00020879,3]
[386538248,1758367740169,-505.16,0.00020879,3]
[386538249,1758367740200,-251.07,0.00020879,3]
[386538250,1758367740229,-753.25,0.00020879,3]
[386538251,1758367740259,-726.19226836,0.00020884,2]
[386538252,1758367740373,-169.41773164,0.00020884,2]
[386538253,1758367740402,-480.0,0.00020884,2]
[386538254,1758367740431,-788.45,0.00020884,2]
[386538255,1758367740460,-480.0,0.00020884,2]
[386538256,1758367740932,-480.0,0.00020787,2]
[386538257,1758367740951,-6164.27453672,0.00020884,2]
[386538258,1758367740964,-10000.01,0.00020884,2]
[386538259,1758367749477,-160.0,0.00020787,2]
[386538260,1758367749506,-480.0,0.00020787,2]
[386538261,1758367749538,-1417.09,0.00020788,2]
[386538262,1758367749568,-300.0,0.00020796,2]
[386538263,1758367749598,-417.15472785,0.00020797,2]
[386538264,1758367749629,-500.0,0.00020883,2]
[386538265,1758367749660,-500.0,0.00020883,2]
[386538266,1758367749690,-500.0,0.00020883,2]
[386538267,1758367749720,-500.0,0.00020883,2]
[386538268,1758367749748,-56.14049804,0.00020883,2]
[386538269,1758367749851,-339.23954822,0.00020883,2]
[386538270,1758367749881,-500.0,0.00020883,2]
[386538271,1758367749910,-500.0,0.00020883,2]
[386538272,1758367749939,-457.08695111,0.00020883,2]
[386538273,1758367749973,-500.0,0.00020883,2]
[386538274,1758367750007,-500.0,0.00020883,2]
[386538275,1758367750039,-500.0,0.00020883,2]
[386538276,1758367750075,-488.96393923,0.00020883,2]
[386538277,1758367750103,-500.0,0.00020883,2]
[386538278,1758367750132,-500.0,0.00020883,2]
[386538279,1758367750160,-49.56963731,0.00020883,2]
[386538280,1758367750255,-330.28984826,0.00020883,2]
[386538281,1758367750282,-500.0,0.00020883,2]